fUSD/lending_fUSD_20260315
["ID","MTS","AMOUNT","RATE_DAILY","PERIOD"]
[408410985,1773574249053,-203.18881738,0.00040821,2]
[408410986,1773574249064,-268.64446797,0.00040821,2]
[408410987,1773574249073,-151.40038469,0.00040821,2]
[408410988,1773574249083,-511.85190634,0.00040821,2]
[408410989,1773574249092,-167.04421083,0.00040821,2]
[408410990,1773574249102,-500.0,0.00040821,2]
[408410991,1773574249111,-365.5398065,0.00040821,2]
[408410992,1773574249120,-500.0,0.00040821,2]
[408410993,1773574249130,-553.1875,0.00040821,2]
[408410994,1773574249138,-500.0,0.00040821,2]
[408410995,1773574249149,-255.8769216,0.00040821,2]
[408410996,1773574249157,-223.44662137,0.00040821,2]
[408410997,1773574249166,-8339.06,0.00040821,2]
[408410998,1773574249175,-597.06561373,0.00040821,2]
[408410999,1773574249184,-8339.06,0.00040821,2]
[408411000,1773574249193,-8339.06,0.00040821,2]
[408411001,1773574249202,-8339.06,0.00040821,2]
[408411002,1773574249211,-215.64187557,0.00040821,2]
[408411003,1773574249220,-8339.06,0.00040821,2]
[408411004,1773574249228,-8339.06,0.00040821,2]
[408411005,1773574249237,-8339.06,0.00040821,2]
[408411006,1773574249247,-8339.06,0.00040821,2]
[408411007,1773574249256,-8339.06,0.00040821,2]
[408411008,1773574249265,-8339.06,0.00040821,2]
[408411009,1773574249274,-8339.06,0.00040821,2]
[408411010,1773574249283,-8339.06,0.00040821,2]
[408411011,1773574249292,-153.98998562,0.00040821,2]
[408411012,1773574249301,-8339.06,0.00040821,2]
[408411013,1773574249310,-8339.06,0.00040821,2]
[408411014,1773574249319,-203.08373655,0.00040821,2]
[408411015,1773574249328,-169.68018462,0.00040821,2]
[408411016,1773574249338,-167.9589031,0.00040821,2]
[408411017,1773574249351,-480.2405301,0.00040821,2]
[408411018,1773574249360,-262.89281088,0.00040821,2]
[408411019,1773574249369,-150.28630004,0.00040821,2]
[408411020,1773574249378,-2092.49,0.00040821,2]
[408411021,1773574249389,-2092.49,0.00040821,2]
[408411022,1773574249398,-2092.49,0.00040821,2]
[408411023,1773574249407,-2092.49,0.00040821,2]
[408411024,1773574249416,-2092.49,0.00040821,2]
[408411025,1773574249425,-2092.49,0.00040821,2]
[408411026,1773574249434,-2092.49,0.00040821,2]
[408411027,1773574249444,-2092.49,0.00040821,2]
[408411028,1773574249453,-237.10938699,0.00040821,2]
[408411029,1773574249462,-2092.49,0.00040821,2]
[408411030,1773574249472,-236.05263024,0.00040821,2]
[408411031,1773574249483,-2092.49,0.00040821,2]
[408411032,1773574249495,-2092.49,0.00040821,2]
[408411033,1773574249504,-2092.49,0.00040821,2]
[408411034,1773574249514,-2092.49,0.00040821,2]
[408411035,1773574249524,-2092.49,0.00040821,2]
[408411036,1773574249533,-159.66587462,0.00040821,2]
[408411037,1773574249542,-380.37208717,0.00040821,2]
[408411038,1773574249551,-511.34396796,0.00040821,2]
[408411039,1773574249560,-262.95865244,0.00040821,2]
[408411040,1773574249569,-500.0,0.00040821,2]
[408411041,1773574249579,-500.0,0.00040821,2]
[408411042,1773574249589,-200.0,0.00040821,2]
[408411043,1773574249598,-500.0,0.00040821,2]
[408411044,1773574249607,-500.0,0.00040821,2]
[408411045,1773574249615,-500.0,0.00040821,2]
[408411046,1773574249624,-500.0,0.00040821,2]
[408411047,1773574249633,-500.0,0.00040821,2]
[408411048,1773574249642,-500.0,0.00040821,2]
[408411049,1773574249651,-500.0,0.00040821,2]
[408411050,1773574249660,-631.5189,0.00040821,2]
[408411051,1773574249669,-500.0,0.00040821,2]
[408411052,1773574249679,-500.0,0.00040821,2]
[408411053,1773574249689,-518.12098011,0.00040821,2]
[408411054,1773574249698,-271.27625813,0.00040821,2]
[408411055,1773574249707,-500.0,0.00040821,2]
[408411056,1773574249718,-500.0,0.00040821,2]
[408411057,1773574249728,-500.0,0.00040821,2]
[408411058,1773574249737,-164.09295615,0.00040821,2]
[408411059,1773574249746,-500.0,0.00040821,2]
[408411060,1773574249755,-500.0,0.00040821,2]
[408411061,1773574249764,-500.0,0.00040821,2]
[408411062,1773574249773,-500.0,0.00040821,2]
[408411063,1773574249783,-629.44605735,0.00040821,2]
[408411064,1773574249792,-206.0329042,0.00040821,2]
[408411065,1773574249802,-421.31571649,0.00040821,2]
[408411066,1773574249811,-155.97852354,0.00040821,2]
[408411067,1773574249820,-175.17354433,0.00040821,2]
[408411068,1773574249830,-154.82516968,0.00040821,2]
[408411069,1773574249839,-150.35614638,0.00040821,2]
[408411070,1773574249849,-230.6066911,0.00040821,2]
[408411071,1773574249858,-151.96128209,0.00040821,2]
[408411072,1773574249867,-163.35064259,0.00040821,2]
[408411073,1773574249876,-228.44778749,0.00040821,2]
[408411074,1773574249885,-223.55740707,0.00040821,2]
[408411075,1773574249895,-500.0,0.00040821,2]
[408411076,1773574249904,-199.1540608,0.00040821,2]
[408411077,1773574249914,-500.0,0.00040821,2]
[408411078,1773574249923,-500.0,0.00040821,2]
[408411079,1773574249933,-500.0,0.00040821,2]
[408411080,1773574249943,-500.0,0.00040821,2]
[408411081,1773574249953,-500.0,0.00040821,2]
[408411082,1773574249968,-500.0,0.00040821,2]
[408411083,1773574249979,-503.72,0.00040821,2]
[408411084,1773574249991,-500.0,0.00040821,2]
[408411085,1773574250001,-503.72,0.00040821,2]
[408411086,1773574250011,-500.0,0.00040821,2]
[408411087,1773574250021,-503.72,0.00040821,2]
[408411088,1773574250031,-321.12765153,0.00040821,2]
[408411089,1773574250041,-500.0,0.00040821,2]
[408411090,1773574250051,-503.72,0.00040821,2]
[408411091,1773574250060,-503.72,0.00040821,2]
[408411092,1773574250068,-500.0,0.00040821,2]
[408411093,1773574250077,-163.57413135,0.00040821,2]
[408411094,1773574250086,-503.72,0.00040821,2]
[408411095,1773574250095,-500.0,0.00040821,2]
[408411096,1773574250104,-500.0,0.00040821,2]
[408411097,1773574250113,-503.72,0.00040821,2]
[408411098,1773574250122,-500.0,0.00040821,2]
[408411099,1773574250131,-503.72,0.00040821,2]
[408411100,1773574250140,-503.72,0.00040821,2]
[408411101,1773574250149,-503.72,0.00040821,2]
[408411102,1773574250159,-503.72,0.00040821,2]
[408411103,1773574250169,-503.72,0.00040821,2]
[408411104,1773574250178,-503.72,0.00040821,2]
[408411105,1773574250187,-440.96103482,0.00040821,2]
[408411106,1773574250197,-304.3895657,0.00040821,2]
[408411107,1773574250206,-500.0,0.00040821,2]
[408411108,1773574250215,-500.0,0.00040821,2]
[408411109,1773574250224,-197.72613843,0.00040821,2]
[408411110,1773574250233,-500.0,0.00040821,2]
[408411111,1773574250242,-301.64520734,0.00040821,2]
[408411112,1773574250251,-223.17510497,0.00040821,2]
[408411113,1773574250260,-497.72786818,0.00040821,2]
[408411114,1773574250269,-287.77827315,0.00040821,2]
[408411115,1773574250279,-180.17291495,0.00040821,2]
[408411116,1773574250288,-204.84204091,0.00040821,2]
[408411117,1773574250297,-696.73,0.00040821,2]
[408411118,1773574250306,-696.73,0.00040821,2]
[408411119,1773574250315,-696.73,0.00040821,2]
[408411120,1773574250324,-696.73,0.00040821,2]
[408411121,1773574250332,-197.44344473,0.00040821,2]
[408411122,1773574250346,-696.73,0.00040821,2]
[408411123,1773574250355,-696.73,0.00040821,2]
[408411124,1773574250364,-696.73,0.00040821,2]
[408411125,1773574250373,-696.73,0.00040821,2]
[408411126,1773574250383,-696.73,0.00040821,2]
[408411127,1773574250392,-696.73,0.00040821,2]
[408411128,1773574250402,-696.73,0.00040821,2]
[408411129,1773574250411,-696.73,0.00040821,2]
[408411130,1773574250421,-696.73,0.00040821,2]
[408411131,1773574250431,-696.73,0.00040821,2]
[408411132,1773574250440,-211.91175615,0.00040821,2]
[408411133,1773574250449,-500.0,0.00040821,2]
[408411134,1773574250458,-500.0,0.00040821,2]
[408411135,1773574250468,-500.0,0.00040821,2]
[408411136,1773574250478,-500.0,0.00040821,2]
[408411137,1773574250487,-500.0,0.00040821,2]
[408411138,1773574250497,-500.0,0.00040821,2]
[408411139,1773574250506,-500.0,0.00040821,2]
[408411140,1773574250515,-500.0,0.00040821,2]
[408411141,1773574250525,-500.0,0.00040821,2]
[408411142,1773574250534,-500.0,0.00040821,2]
[408411143,1773574250543,-500.0,0.00040821,2]
[408411144,1773574250553,-500.0,0.00040821,2]
[408411145,1773574250562,-500.0,0.00040821,2]
[408411146,1773574250572,-1000.0,0.00040822,120]
[408411147,1773574250582,-150.0,0.00040873,5]
[408411148,1773574250592,-250.0,0.00040873,2]
[408411149,1773574250601,-155.47092211,0.00040873,2]
[408411150,1773574250611,-150.0,0.00040873,2]
[408411151,1773574250621,-150.0,0.00040873,2]
[408411152,1773574250630,-500.0,0.00040873,2]
[408411153,1773574250640,-500.0,0.00040873,2]
[408411154,1773574250650,-172.0,0.00040876,2]
[408411155,1773574250659,-1970.53667234,0.000409,2]
[408411156,1773574250668,-170.7,0.000409,30]
[408411157,1773574250678,-246.1232,0.000409,30]
[408411158,1773574250687,-300.0,0.000409,10]
[408411159,1773574250697,-4100.0,0.000409,14]
[408411160,1773574250708,-191.05,0.000409,43]
[408411161,1773574250717,-500.0,0.00040928,2]
[408411162,1773574250727,-159.77853922,0.00040928,2]
[408411163,1773574250736,-1217.0,0.0004095,60]
[408411164,1773574250746,-1604.58360531,0.00040957,2]
[408411165,1773574250755,-1604.58360531,0.00040957,2]
[408411166,1773574250765,-1604.58360531,0.00040957,2]
[408411167,1773574250774,-1604.58360531,0.00040957,2]
[408411168,1773574250784,-1604.58360531,0.00040957,2]
[408411169,1773574250794,-1604.58360531,0.00040957,2]
[408411170,1773574250803,-1604.58360531,0.00040957,2]
[408411171,1773574250812,-1604.58360531,0.00040957,2]
[408411172,1773574250821,-1604.58360531,0.00040957,2]
[408411173,1773574250830,-1604.58360531,0.00040957,2]
[408411174,1773574250839,-1604.58360531,0.00040957,2]
[408411175,1773574250848,-1604.58360531,0.00040957,2]
[408411176,1773574250858,-1604.58360531,0.00040957,2]
[408411177,1773574250867,-501.81517205,0.0004097,3]
[408411178,1773574250876,-400.0,0.0004097,3]
[408411179,1773574250885,-400.0,0.0004097,3]
[408411180,1773574250894,-400.0,0.0004097,3]
[408411181,1773574250904,-275.57880961,0.00040982,2]
[408411182,1773574250913,-500.0,0.00040995,2]
[408411183,1773574250923,-6055.72,0.00040995,2]
[408411184,1773574250933,-500.0,0.00040995,2]
[408411185,1773574250942,-933.0832,0.00040996,2]
[408411186,1773574250951,-500.0,0.00040998,2]
[408411187,1773574250961,-834.65,0.00040998,2]
[408411188,1773574250971,-500.0,0.00040998,2]
[408411189,1773574250980,-771.74,0.00040998,2]
[408411190,1773574251088,-500.0,0.00040998,2]
[408411191,1773574251098,-500.0,0.00040998,2]
[408411192,1773574251107,-500.0,0.00040998,2]
[408411193,1773574251116,-500.0,0.00040998,2]
[408411194,1773574251125,-566.9,0.00040998,2]
[408411195,1773574251134,-803.37,0.00040998,2]
[408411196,1773574251143,-1295.21,0.00040998,2]
[408411197,1773574251152,-13487.14479506,0.00040998,2]
[408411198,1773574251300,-18785.53133616,0.00040998,2]
[408411199,1773574251312,-1018.40386878,0.00040998,2]
[408411200,1773574251321,-5257.03738206,0.00040998,2]
[408411201,1773574251344,-782.9001813,0.00040998,2]
[408411202,1773574251369,1014.87730271,0.00011593,2]
[408411203,1773574251390,785.12269729,0.00011593,2]
[408411204,1773574251432,1800.0,0.00011593,2]
[408411205,1773574251479,1800.0,0.00011593,2]
[408411206,1773574251545,1800.0,0.00011593,2]
[408411207,1773574251584,1800.0,0.00011593,2]
[408411208,1773574251620,1800.0,0.00011593,2]
[408411209,1773574251660,214.88730271,0.00011593,2]
[408411210,1773574251681,1585.11269729,0.00011593,2]
[408411211,1773574251712,1800.0,0.00011593,2]
[408411212,1773574251759,1800.0,0.00011593,2]
[408411213,1773574251784,-92.82058883,0.00027741,2]
[408411214,1773574251829,1800.0,0.00011593,2]
[408411215,1773574251874,1800.0,0.00011593,2]
[408411216,1773574251976,1214.89730271,0.00011593,2]
[408411217,1773574252007,585.10269729,0.00011593,2]
[408411218,1773574252070,1800.0,0.00011593,2]
[408411219,1773574252122,1800.0,0.00011593,2]
[408411220,1773574252227,-2371.17941117,0.00027741,2]
[408411221,1773574252241,-895.376,0.00030741,2]
[408411222,1773574252252,-1067.11055587,0.0003336,20]
[408411223,1773574252263,-1024.66492042,0.0003336,20]
[408411224,1773574252276,-1083.01133915,0.0003336,20]
[408411225,1773574252289,-15551.41,0.00039532,10]
[408411226,1773574252301,-745.0,0.00040812,60]
[408411227,1773574252313,-12522.0,0.00040821,60]
[408411228,1773574252325,-9044.61243664,0.00040998,2]
[408411229,1773574252337,-8339.06,0.00040998,2]
[408411230,1773574252353,-2092.49,0.00040998,2]
[408411231,1773574252364,-500.0,0.00040999,2]
[408411232,1773574252376,-6055.72,0.00040999,2]
[408411233,1773574252388,-747.2,0.00040999,2]
[408411234,1773574252401,-836.31,0.00040999,2]
[408411235,1773574252413,-6251.02,0.00040999,2]
[408411236,1773574252428,-6960.72,0.00040999,2]
[408411237,1773574252440,-1552.83,0.00040999,2]
[408411238,1773574252453,-500.0,0.00040999,2]
[408411239,1773574252464,-500.0,0.00040999,2]
[408411240,1773574252475,-503.72,0.00040999,2]
[408411241,1773574252487,-696.73,0.00040999,2]
[408411242,1773574252498,-35040.03356429,0.00041,30]
[408411243,1773574252533,1800.0,0.00011593,2]
[408411244,1773574252549,-1376.08582069,0.00041,30]
[408411245,1773574252582,-808.199998,0.00041,30]
[408411246,1773574252617,1800.0,0.00011593,2]
[408411247,1773574252658,1800.0,0.00011593,2]
[408411248,1773574252688,414.90730271,0.00011593,2]
[408411249,1773574252708,1385.09269729,0.00011593,2]
[408411250,1773574252734,1800.0,0.00011593,2]
[408411251,1773574252773,1800.0,0.00011593,2]
[408411252,1773574252808,1800.0,0.00011593,2]
[408411253,1773574252836,1800.0,0.00011593,2]
[408411254,1773574252871,1414.91730271,0.00011593,2]
[408411255,1773574252891,385.08269729,0.00011593,2]
[408411256,1773574252922,1800.0,0.00011593,2]
[408411257,1773574253208,1800.0,0.00011593,2]
[408411258,1773574253239,1800.0,0.00011593,2]
[408411259,1773574253267,1800.0,0.00011593,2]
[408411260,1773574253296,1800.0,0.00011593,2]
[408411261,1773574253327,614.92730271,0.00011593,2]
[408411262,1773574253350,1185.07269729,0.00011593,2]
[408411263,1773574253393,1607.0,0.00011593,2]
[408411267,1773574353624,-1200.0,0.00011608,2]
[408411268,1773574353654,-1200.0,0.00011608,2]
[408411269,1773574353684,-1200.0,0.00011608,2]
[408411270,1773574353719,-1200.0,0.00011608,2]
[408411271,1773574353893,-1200.0,0.00011608,2]
[408411272,1773574353920,-1200.0,0.00011608,2]
[408411273,1773574353947,-1200.0,0.00011608,2]
[408411274,1773574353972,-1200.0,0.00011608,2]
[408411275,1773574354038,-1200.0,0.00011608,2]
[408411276,1773574354064,-1200.0,0.00011608,2]
[408411277,1773574354090,-1200.0,0.00011608,2]
[408411278,1773574354128,-1200.0,0.00011608,2]
[408411279,1773574354256,-1200.0,0.00011608,2]
[408411280,1773574354284,-1200.0,0.00011608,2]
[408411281,1773574354311,-422.0,0.00011608,2]
[408411282,1773574357697,-300.0,0.00011627,2]
[408411285,1773574441264,1200.0,0.00011627,2]
[408411286,1773574441542,1200.0,0.00011627,2]
[408411287,1773574441787,1200.0,0.00011627,2]
[408411288,1773574442201,800.01,0.00011627,2]
[408411289,1773574442221,399.99,0.00011627,2]
[408411290,1773574442549,367.0,0.00011627,2]
[408411292,1773574476818,1200.0,0.00011627,2]
[408411293,1773574476936,350.0,0.00011627,2]
[408411295,1773574512046,465.0,0.00011627,2]
[408411296,1773574533556,184.75114855,0.00011599,2]
[408411298,1773574546271,199.0,0.00011627,2]
[408411299,1773574553153,500.0,0.00011599,2]
[408411300,1773574553212,439.0891526,0.00011599,2]
[408411301,1773574554511,500.0,0.00011599,2]
[408411302,1773574554564,395.17969885,0.00011599,2]
[408411303,1773574554585,244.17083081,0.00011599,2]
[408411304,1773574555860,534.51830618,0.00011599,2]
[408411308,1773574663861,-1200.0,0.00011642,2]
[408411316,1773574963768,-250.0,0.00011675,2]
[408411317,1773575227644,554.35,7.361e-05,2]
[408411318,1773575227847,554.35,7.748e-05,2]
[408411319,1773575228041,554.35,8.136e-05,2]
[408411320,1773575228234,554.35,8.523e-05,2]
[408411321,1773575228446,554.35,8.911e-05,2]
[408411322,1773575228629,554.35,9.298e-05,2]
[408411323,1773575228815,554.35,9.685e-05,2]
[408411324,1773575229004,554.35,0.00010073,2]
[408411325,1773575229253,554.35,0.0001046,2]
[408411326,1773575229404,554.35,0.00010848,2]
[408411327,1773575229614,554.35,0.00011235,2]
[408411328,1773575229805,554.35,0.00011623,2]
[408411329,1773575355122,-554.35,0.0001201,2]
[408411330,1773575355142,-216.82396773,0.00012065,2]
[408411331,1773575355166,-250.0,0.00012135,2]
[408411332,1773575355188,-833.68924529,0.0001226,2]
[408411333,1773575355213,-173.01051566,0.00012298,2]
[408411334,1773575355233,-554.35,0.00012397,2]
[408411335,1773575355253,-554.35,0.00012785,2]
[408411336,1773575355274,-1200.0,0.00012817,2]
[408411337,1773575355294,-1211.95499132,0.00012903,2]
[408411338,1773575431647,-456.50541151,0.00012903,2]
[408411340,1773575431700,-924.04449371,0.00012903,2]
[408411341,1773575431754,-1000.0,0.00012903,2]
[408411342,1773575431766,-60.49656838,0.00012903,2]
[408411343,1773575431775,-554.35,0.00013172,2]
[408411344,1773575431785,-115.46751075,0.00013211,2]
[408411345,1773575431796,-134.53248925,0.00013211,2]
[408411346,1773575431806,-217.82256234,0.00013211,2]
[408411347,1773575431821,-32.17743766,0.00013211,2]
[408411348,1773575431836,-262.91338744,0.0001356,2]
[408411349,1773575431853,-291.43661256,0.0001356,2]
[408411350,1773575431862,-300.0,0.00013697,2]
[408411351,1773575431872,-244.17156598,0.00013947,2]
[408411352,1773575431940,-310.17843402,0.00013947,2]
[408411353,1773575431950,-173.01051565,0.00014168,2]
[408411354,1773575431959,-17.81105033,0.00014193,2]
[408411355,1773575431970,-232.18894967,0.00014193,2]
[408411356,1773575431980,-114.65908205,0.00014193,2]
[408411357,1773575431991,-485.34091795,0.00014193,2]
[408411358,1773575432000,-600.0,0.00014193,2]
[408411359,1773575432011,-600.0,0.00014193,2]
[408411360,1773575432021,-600.0,0.00014193,2]
[408411361,1773575432030,-639.35024778,0.00014193,2]
[408411362,1773575432039,-300.0,0.00014193,2]
[408411363,1773575432049,-300.0,0.00014193,2]
[408411364,1773575432059,-300.0,0.00014193,2]
[408411365,1773575432068,-300.0,0.00014193,2]
[408411366,1773575432078,-434.17103595,0.00014193,2]
[408411367,1773575432087,-203.89137362,0.00014193,2]
[408411368,1773575432097,-300.1591244,0.00014193,2]
[408411369,1773575432106,-500.0,0.00014193,2]
[408411370,1773575432115,-500.0,0.00014193,2]
[408411371,1773575432125,-500.0,0.00014193,2]
[408411372,1773575432134,-342.34757849,0.00014193,2]
[408411373,1773575432143,-554.35,0.00014335,2]
[408411374,1773575432152,-3301.09,0.00014584,2]
[408411375,1773575432162,-500.0,0.00014668,2]
[408411376,1773575432171,-554.35,0.00014722,2]
[408411377,1773575432180,-1500.0,0.00014855,2]
[408411378,1773575432189,-300.0,0.00014874,2]
[408411379,1773575432199,-300.0,0.00014874,2]
[408411380,1773575432208,-160.55,0.00014875,2]
[408411381,1773575432218,-500.0,0.00014999,3]
[408411382,1773575432227,-300.0,0.00015326,2]
[408411383,1773575432237,-2390.58278855,0.00015327,3]
[408411384,1773575432247,-200.0,0.00015367,2]
[408411385,1773575432257,-221.0,0.00015375,2]
[408411386,1773575432266,-1346.0,0.00015429,2]
[408411387,1773575432275,-365.0,0.0001546,2]
[408411388,1773575432284,-947.0,0.00015476,2]
[408411389,1773575432293,-704.0,0.0001549,2]
[408411390,1773575432303,-277.0,0.00015507,2]
[408411391,1773575432312,-392.0,0.00015773,2]
[408411392,1773575432321,-226.0,0.00015805,2]
[408411393,1773575432331,-166.66,0.00015908,2]
[408411394,1773575432341,-160.55,0.00015937,2]
[408411395,1773575432350,-173.01051565,0.00016038,2]
[408411396,1773575432360,-1944.3742,0.00016082,2]
[408411397,1773575432369,-150.99,0.00016116,2]
[408411398,1773575432378,-299.99,0.00016116,4]
[408411399,1773575432387,-910.61,0.00016116,2]
[408411400,1773575432396,-1842.25,0.00016116,2]
[408411401,1773575432405,-15000.02,0.00016116,2]
[408411402,1773575432415,-9999.99,0.00016116,2]
[408411403,1773575432424,-2500.0,0.00016138,2]
[408411404,1773575432434,-386.62084127,0.00016173,2]
[408411405,1773575432444,-693.56,0.00016228,3]
[408411406,1773575432454,-700.62114221,0.00016228,2]
[408411407,1773575432463,-172145.5278,0.00016238,2]
[408411408,1773575432472,-500.0,0.00016273,2]
[408411409,1773575432482,-500.0,0.00016273,2]
[408411410,1773575432492,-574.15668349,0.00016273,2]
[408411411,1773575432503,-500.0,0.00016273,2]
[408411412,1773575432512,-500.0,0.00016273,2]
[408411413,1773575432521,-500.0,0.00016273,2]
[408411414,1773575432532,-446.46468827,0.00016273,2]
[408411415,1773575432541,-500.0,0.00016273,2]
[408411416,1773575432552,-500.0,0.00016273,2]
[408411417,1773575432561,-332.58199131,0.00016273,2]
[408411418,1773575432570,-500.0,0.00016273,2]
[408411419,1773575432579,-500.0,0.00016273,2]
[408411420,1773575432588,-500.0,0.00016273,2]
[408411421,1773575432597,-500.0,0.00016273,2]
[408411422,1773575432607,-500.0,0.00016273,2]
[408411423,1773575432616,-500.0,0.00016273,2]
[408411424,1773575432626,-500.0,0.00016273,2]
[408411425,1773575432636,-500.0,0.00016273,2]
[408411426,1773575432646,-420.0,0.00016281,2]
[408411427,1773575432655,-200.0,0.00016283,2]
[408411428,1773575432664,-373.0,0.00016417,2]
[408411429,1773575432674,-166.66,0.00016434,2]
[408411430,1773575432683,-408.0,0.0001645,2]
[408411431,1773575432692,-640.0,0.00016482,2]
[408411432,1773575432702,-1130.0,0.00016515,2]
[408411433,1773575432714,-500.0,0.00016547,2]
[408411434,1773575432725,-408.46909781,0.00016821,2]
[408411435,1773575432735,-166.66,0.00016959,2]
[408411436,1773575432745,-160.55,0.00017,2]
[408411437,1773575432755,-519.0,0.00017,2]
[408411438,1773575432768,-250.0,0.00017049,2]
[408411439,1773575432777,-1149.0,0.00017222,2]
[408411440,1773575432786,-1202.0,0.00017257,2]
[408411441,1773575432795,-1622.0,0.00017291,2]
[408411442,1773575432806,-166.66,0.00017484,2]
[408411443,1773575432815,-150.0,0.00017489,2]
[408411444,1773575432826,-587.0,0.00017821,2]
[408411445,1773575432836,-166.66,0.00018009,2]
[408411446,1773575432849,-160.55,0.00018062,2]
[408411447,1773575432858,-166.66,0.00018534,2]
[408411448,1773575432867,-160.55,0.00019125,2]
[408411449,1773575432876,-469.87233333,0.00019159,2]
[408411450,1773575432885,-823.0,0.00019506,2]
[408411451,1773575432895,-160.0,0.00019602,2]
[408411452,1773575432904,-166.66,0.00019777,2]
[408411453,1773575432912,-3278.58529348,0.00019928,10]
[408411454,1773575432922,-11394.96,0.00020182,2]
[408411455,1773575432931,-160.55,0.00020187,2]
[408411456,1773575432940,-166.66,0.00020193,2]
[408411457,1773575432949,-5172.19,0.00020525,2]
[408411458,1773575432958,-166.66,0.00020609,2]
[408411459,1773575432967,-166.66,0.00021026,2]
[408411460,1773575432978,-160.55,0.0002125,2]
[408411461,1773575432989,-1152.0,0.00021351,2]
[408411462,1773575433000,-166.66,0.00021442,2]
[408411463,1773575433010,-166.66,0.00021859,2]
[408411464,1773575433021,-154.0,0.00022,2]
[408411465,1773575433031,-160.55,0.00022312,2]
[408411466,1773575433041,-3947.4763318,0.00022995,22]
[408411467,1773575433050,-154.0,0.00023,2]
[408411468,1773575433059,-1613.0,0.00023371,2]
[408411469,1773575433068,-154.0,0.00024,2]
[408411470,1773575433077,-1000.0,0.00024658,2]
[408411471,1773575433086,-519.0,0.00024875,9]
[408411472,1773575433095,-154.0,0.00025,2]
[408411473,1773575433104,-2104.0,0.00025581,2]
[408411474,1773575433114,-154.0,0.00026,2]
[408411475,1773575433125,-4725.92310342,0.00026062,34]
[408411476,1773575433134,-400.0,0.000267,9]
[408411477,1773575433144,-800.0,0.000268,9]
[408411478,1773575433153,-1200.0,0.000269,9]
[408411479,1773575433163,-154.0,0.00027,2]
[408411480,1773575433172,-5000.0,0.00027204,2]
[408411481,1773575433182,-277.18655868,0.00027294,2]
[408411482,1773575433191,-2259.69119544,0.00027297,2]
[408411483,1773575433200,-153.19771638,0.00027297,2]
[408411484,1773575433209,-150.03194954,0.00027297,2]
[408411485,1773575433218,-160.4878236,0.00027304,2]
[408411486,1773575433227,-1323034.49680055,0.00027304,2]
[408411487,1773575433241,-69703.29456659,0.00027304,2]
[408411488,1773575433252,-9307.76053286,0.00027304,2]
[408411489,1773575433262,-12959.51,0.00027397,10]
[408411490,1773575433271,-10799.59,0.00027397,10]
[408411491,1773575433280,-8999.66,0.00027397,10]
[408411492,1773575433289,-786.0,0.00027404,10]
[408411493,1773575433299,-13734.0,0.00027404,10]
[408411494,1773575433307,-469.87233333,0.00027404,10]
[408411495,1773575433316,-469.87233333,0.00027404,10]
[408411496,1773575433325,-497.25498154,0.00028767,2]
[408411497,1773575433334,-2000.0,0.000288,2]
[408411498,1773575433343,-2259.69119544,0.00029014,2]
[408411499,1773575433352,-5319.14280335,0.00029129,46]
[408411500,1773575433361,-14464.46,0.00030638,2]
[408411501,1773575433370,-5418.91456924,0.00030663,54]
[408411502,1773575433379,-1043.0,0.00030682,2]
[408411503,1773575433389,-3436.312,0.00030682,2]